[Event "44th Chess Olympiad Open 2022"]
[Site "Chennai"]
[Date "2022.08.02"]
[Round "5.52"]
[White "Pace, Colin"]
[Black "Al-Zendani, Zendan"]
[Result "0-1"]
[WhiteElo "2159"]
[BlackElo "2284"]
[Annotator "NA RC"]
[PlyCount "124"]
[EventDate "2022.??.??"]
[TimeControl "60"]

1. e4 {[%emt 0:00:05]} c5 {[%emt 0:03:07]} 2. Nf3 {[%emt 0:00:09]} e6 {[%emt 0:
00:00]} 3. d4 {[%emt 0:00:37]} cxd4 {[%emt 0:00:08]} 4. Nxd4 {[%emt 0:00:03]}
Nf6 {[%emt 0:00:38]} 5. Nc3 {[%emt 0:11:27]} d6 {[%emt 0:02:33]} 6. Be2 {
[%emt 0:03:44]} Be7 {[%emt 0:01:20]} 7. O-O {[%emt 0:00:36]} O-O {[%emt 0:00:
00]} 8. Be3 {[%emt 0:01:03]} a6 {[%emt 0:00:53]} 9. f4 {[%emt 0:00:31]} Nc6 {
[%emt 0:10:56]} 10. a4 {[%emt 0:00:40]} Bd7 {[%emt 0:01:59]} 11. Kh1 {[%emt 0:
00:00]} Qc7 {[%emt 0:05:21]} 12. Qe1 {[%emt 0:04:05]} Rfe8 {[%emt 0:21:28]} 13.
Qg3 {[%emt 0:03:14]} Bf8 {[%emt 0:06:26]} 14. Bd3 {[%emt 0:14:41]} Nb4 {
[%emt 0:14:41]} 15. e5 {[%emt 0:03:10]} Nfd5 {[%emt 0:03:46]} 16. Nxd5 {
[%emt 0:08:32]} exd5 {[%emt 0:02:04]} 17. exd6 {[%emt 0:04:00]} Qxd6 {[%emt 0:
00:00]} 18. Nf5 {[%emt 0:02:26]} Bxf5 {[%emt 0:01:06]} 19. Bxf5 {[%emt 0:00:01]
} Qf6 {[%emt 0:00:20]} 20. Qh3 {[%emt 0:10:50]} g6 {[%emt 0:00:15]} 21. Bd3 {
[%emt 0:01:03]} Nxd3 {[%emt 0:01:31]} 22. cxd3 {[%emt 0:00:02]} Qe6 {[%emt 0:
00:00]} 23. Qxe6 {[%emt 0:02:31]} Rxe6 {[%emt 0:00:06]} 24. Bd4 {[%emt 0:00:08]
} Bg7 {[%emt 0:00:43]} 25. f5 {[%emt 0:03:42]} Re2 {[%emt 0:01:58]} 26. f6 {
[%emt 0:05:05]} Bh6 {[%emt 0:00:05]} 27. Rfe1 {[%emt 0:04:13]} Rae8 {[%emt 0:
00:00]} 28. Rxe2 {[%emt 0:00:52]} Rxe2 {[%emt 0:00:07]} 29. Kg1 {[%emt 0:00:24]
} Bg5 {[%emt 0:00:54]} 30. Kf1 {[%emt 0:06:49]} Re6 {[%emt 0:00:38]} 31. Re1 {
[%emt 0:00:08]} Kf8 {[%emt 0:00:28]} 32. g3 {[%emt 0:00:34]} Ke8 {[%emt 0:00:
00]} 33. h4 {[%emt 0:01:36]} Rxe1+ {[%emt 0:00:10]} 34. Kxe1 {[%emt 0:00:01]}
Bh6 {[%emt 0:00:22]} 35. Ke2 {[%emt 0:02:51]} Kd7 {[%emt 0:00:05]} 36. Be3 {
[%emt 0:03:01]} Bf8 {[%emt 0:00:10]} 37. g4 {[%emt 0:00:14]} h6 {[%emt 0:02:53]
} 38. Kf3 {[%emt 0:00:34]} Ke6 {[%emt 0:00:10]} 39. g5 {[%emt 0:01:34]} hxg5 {
[%emt 0:00:05]} 40. hxg5 {[%emt 0:00:01]} Kf5 {[%emt 0:00:11]} 41. Bd2 {
[%emt 0:30:47]} Bc5 {[%emt 0:34:48]} 42. b3 {[%emt 0:00:00]} Bg1 {[%emt 0:00:
00]} 43. Kg2 {[%emt 0:00:00]} Bd4 {[%emt 0:00:00]} 44. Kf3 {[%emt 0:00:00]} Bb2
{[%emt 0:00:00]} 45. Kg3 {[%emt 0:00:00]} d4 {[%emt 0:00:00]} 46. Kf3 {[%emt 0:
00:00]} Bc3 {[%emt 0:00:00]} 47. Bc1 {[%emt 0:00:00]} Be1 {[%emt 0:00:00]} 48.
Bb2 {[%emt 0:00:00]} Bd2 {[%emt 0:00:00]} 49. Bxd4 {[%emt 0:00:00]} Bxg5 {
[%emt 0:00:00]} 50. Bb6 {[%emt 0:00:00]} Bxf6 {[%emt 0:00:00]} 51. Bc7 {
[%emt 0:00:00]} Be5 {[%emt 0:00:00]} 52. Bd8 {[%emt 0:00:00]} g5 {[%emt 0:00:
00]} 53. Bb6 {[%emt 0:00:00]} g4+ {[%emt 0:00:00]} 54. Kf2 {[%emt 0:00:00]} Ke6
{[%emt 0:00:00]} 55. Kg2 {[%emt 0:01:14]} Kd5 {[%emt 0:00:00]} 56. Be3 {
[%emt 0:00:33]} f5 {[%emt 0:00:00]} 57. Bb6 {[%emt 0:00:20]} Bd4 {[%emt 0:00:
00]} 58. Bd8 {[%emt 0:00:57]} f4 {[%emt 0:00:00]} 59. Bc7 {[%emt 0:01:33]} f3+
{[%emt 0:00:00]} 60. Kf1 {[%emt 0:00:24]} Be5 {[%emt 0:00:00]} 61. Bb6 {
[%emt 0:01:04]} g3 {[%emt 0:00:00]} 62. Ba7 {[%emt 0:00:20]} Bd4 {[%emt 0:00:
00]} 0-1

[Event "44th Chess Olympiad Open 2022"]
[Site "Chennai"]
[Date "2022.08.02"]
[Round "5.52"]
[White "Mizzi, Jack"]
[Black "Al-Subaihi, Khalil"]
[Result "1/2-1/2"]
[WhiteElo "1913"]
[BlackElo "2141"]
[Annotator "RC"]
[PlyCount "61"]
[EventDate "2022.??.??"]
[TimeControl "60"]

1. d4 {[%emt 0:00:05]} Nf6 {[%emt 0:00:07]} 2. c4 {[%emt 0:00:13]} e6 {[%emt 0:
00:00]} 3. g3 {[%emt 0:00:14]} d5 {[%emt 0:00:06]} 4. Bg2 {[%emt 0:00:09]} c5 {
[%emt 0:00:20]} 5. cxd5 {[%emt 0:00:47]} exd5 {[%emt 0:00:08]} 6. Nf3 {[%emt 0:
00:00]} h6 {[%emt 0:00:08]} 7. O-O {[%emt 0:00:28]} Nc6 {[%emt 0:00:04]} 8. Nc3
{[%emt 0:01:09]} Be7 {[%emt 0:00:19]} 9. dxc5 {[%emt 0:06:31]} Bxc5 {[%emt 0:
00:00]} 10. b3 {[%emt 0:05:16]} O-O {[%emt 0:02:17]} 11. Bb2 {[%emt 0:00:41]}
Be6 {[%emt 0:02:19]} 12. Rc1 {[%emt 0:01:07]} Bb6 {[%emt 0:04:29]} 13. Na4 {
[%emt 0:03:50]} Ne4 {[%emt 0:02:26]} 14. Nd4 {[%emt 0:03:11]} Rc8 {[%emt 0:00:
00]} 15. Nxb6 {[%emt 0:04:49]} axb6 {[%emt 0:07:16]} 16. Nxe6 {[%emt 0:09:16]}
fxe6 {[%emt 0:00:41]} 17. Bxe4 {[%emt 0:04:09]} dxe4 {[%emt 0:00:16]} 18. Qxd8
{[%emt 0:20:05]} Rfxd8 {[%emt 0:04:18]} 19. Rfd1 {[%emt 0:01:22]} Rd5 {[%emt 0:
00:00]} 20. Rxd5 {[%emt 0:01:19]} exd5 {[%emt 0:00:11]} 21. e3 {[%emt 0:13:42]}
Rd8 {[%emt 0:11:09]} 22. b4 {[%emt 0:05:31]} Rd7 {[%emt 0:02:06]} 23. b5 {
[%emt 0:03:54]} Nb4 {[%emt 0:00:31]} 24. Bd4 {[%emt 0:02:59]} Nxa2 {[%emt 0:00:
00]} 25. Rc8+ {[%emt 0:01:03]} Kh7 {[%emt 0:00:32]} 26. Bxb6 {[%emt 0:00:18]}
Nb4 {[%emt 0:01:09]} 27. Bd4 {[%emt 0:00:19]} Nd3 {[%emt 0:00:09]} 28. b6 {
[%emt 0:00:33]} Rf7 {[%emt 0:00:28]} 29. Rc7 {[%emt 0:00:14]} Kg6 {[%emt 0:00:
00]} 30. Rxf7 {[%emt 0:01:19]} Kxf7 {[%emt 0:00:01]} 31. Kf1 {[%emt 0:01:32]}
1/2-1/2

[Event "44th Chess Olympiad Open 2022"]
[Site "Chennai"]
[Date "2022.08.02"]
[Round "5.53"]
[White "Lorenzana, Wilson Estuardo"]
[Black "Chiwambo Stansford"]
[Result "1-0"]
[WhiteElo "2182"]
[BlackElo "1913"]
[Annotator "NA RC"]
[PlyCount "55"]
[EventDate "2022.??.??"]
[TimeControl "60"]

1. e4 {[%emt 0:00:15]} c5 {[%emt 0:00:08]} 2. Nf3 {[%emt 0:00:04]} d6 {[%emt 0:
00:00]} 3. d4 {[%emt 0:00:07]} cxd4 {[%emt 0:00:06]} 4. Nxd4 {[%emt 0:00:04]}
Nf6 {[%emt 0:00:07]} 5. Nc3 {[%emt 0:00:06]} a6 {[%emt 0:01:03]} 6. a3 {
[%emt 0:00:21]} e5 {[%emt 0:01:31]} 7. Nf5 {[%emt 0:00:06]} Bxf5 {[%emt 0:00:
00]} 8. exf5 {[%emt 0:00:07]} d5 {[%emt 0:00:38]} 9. Bg5 {[%emt 0:00:05]} d4 {
[%emt 0:01:07]} 10. Bxf6 {[%emt 0:00:08]} Qxf6 {[%emt 0:00:59]} 11. Nd5 {
[%emt 0:00:06]} Qc6 {[%emt 0:00:36]} 12. Qf3 {[%emt 0:00:19]} Bd6 {[%emt 0:00:
00]} 13. Bd3 {[%emt 0:04:43]} Nd7 {[%emt 0:04:12]} 14. O-O {[%emt 0:00:24]} Rb8
{[%emt 0:02:56]} 15. Be4 {[%emt 0:03:36]} Qc8 {[%emt 0:00:38]} 16. f6 {[%emt 0:
00:00]} g6 {[%emt 0:01:21]} 17. c3 {[%emt 0:00:12]} O-O {[%emt 0:04:33]} 18.
Qh3 {[%emt 0:01:29]} Qd8 {[%emt 0:01:30]} 19. Qh4 {[%emt 0:00:31]} Re8 {
[%emt 0:00:17]} 20. Rad1 {[%emt 0:01:50]} Nb6 {[%emt 0:08:44]} 21. Rd3 {
[%emt 0:02:34]} Nxd5 {[%emt 0:01:37]} 22. Bxd5 {[%emt 0:00:04]} Bf8 {[%emt 0:
00:00]} 23. c4 {[%emt 0:01:10]} b5 {[%emt 0:00:56]} 24. Rh3 {[%emt 0:00:36]} h6
{[%emt 0:02:31]} 25. Rg3 {[%emt 0:00:08]} Kh7 {[%emt 0:21:52]} 26. Bxf7 {
[%emt 0:00:15]} g5 {[%emt 0:00:23]} 27. Qe4+ {[%emt 0:00:07]} Kh8 {[%emt 0:00:
00]} 28. Qg6 {[%emt 0:00:24]} 1-0

[Event "44th Chess Olympiad Open 2022"]
[Site "Chennai"]
[Date "2022.08.02"]
[Round "5.53"]
[White "Mwale, Joseph"]
[Black "Cu Hor, Winston Darwin"]
[Result "0-1"]
[WhiteElo "2131"]
[BlackElo "2328"]
[Annotator "RC"]
[PlyCount "120"]
[EventDate "2022.??.??"]
[TimeControl "60"]

1. Nf3 {[%emt 0:00:12]} c5 {[%emt 0:00:42]} 2. g3 {[%emt 0:00:25]} b6 {[%emt 0:
00:00]} 3. Bg2 {[%emt 0:00:06]} Bb7 {[%emt 0:00:07]} 4. d4 {[%emt 0:02:08]}
cxd4 {[%emt 0:00:31]} 5. Qxd4 {[%emt 0:00:04]} Nf6 {[%emt 0:00:06]} 6. O-O {
[%emt 0:00:11]} d6 {[%emt 0:01:13]} 7. c4 {[%emt 0:00:22]} g6 {[%emt 0:00:46]}
8. Nc3 {[%emt 0:00:48]} Bg7 {[%emt 0:00:09]} 9. Rd1 {[%emt 0:03:05]} Nbd7 {
[%emt 0:00:17]} 10. Be3 {[%emt 0:04:32]} Rc8 {[%emt 0:02:15]} 11. Rac1 {
[%emt 0:00:43]} h6 {[%emt 0:02:31]} 12. b3 {[%emt 0:08:05]} O-O {[%emt 0:09:05]
} 13. Qd2 {[%emt 0:01:01]} Kh7 {[%emt 0:01:31]} 14. Ng5+ {[%emt 0:05:00]} hxg5
{[%emt 0:00:46]} 15. Bxb7 {[%emt 0:00:03]} Rb8 {[%emt 0:02:14]} 16. Bg2 {
[%emt 0:00:13]} g4 {[%emt 0:00:41]} 17. Nb5 {[%emt 0:12:55]} a6 {[%emt 0:01:29]
} 18. Nd4 {[%emt 0:00:43]} Ne5 {[%emt 0:04:29]} 19. Nc6 {[%emt 0:01:46]} Nxc6 {
[%emt 0:00:31]} 20. Bxc6 {[%emt 0:00:02]} Qc8 {[%emt 0:01:53]} 21. Bg2 {
[%emt 0:01:16]} Qf5 {[%emt 0:01:22]} 22. Bg5 {[%emt 0:08:57]} Rfc8 {[%emt 0:00:
00]} 23. Qf4 {[%emt 0:08:07]} Qxf4 {[%emt 0:08:17]} 24. Bxf4 {[%emt 0:00:02]}
Bh6 {[%emt 0:00:23]} 25. Bxh6 {[%emt 0:03:00]} Kxh6 {[%emt 0:07:35]} 26. e3 {
[%emt 0:17:56]} Kg7 {[%emt 0:00:22]} 27. h4 {[%emt 0:07:18]} Nd7 {[%emt 0:00:
00]} 28. Bf1 {[%emt 0:01:06]} Ne5 {[%emt 0:00:14]} 29. Be2 {[%emt 0:00:12]} Rc7
{[%emt 0:00:58]} 30. Rd4 {[%emt 0:01:02]} f5 {[%emt 0:00:01]} 31. Rcd1 {
[%emt 0:01:25]} b5 {[%emt 0:04:48]} 32. cxb5 {[%emt 0:08:13]} axb5 {[%emt 0:00:
00]} 33. a4 {[%emt 0:03:44]} Rc2 {[%emt 0:01:48]} 34. R4d2 {[%emt 0:00:32]}
Rxd2 {[%emt 0:00:27]} 35. Rxd2 {[%emt 0:00:01]} bxa4 {[%emt 0:00:07]} 36. bxa4
{[%emt 0:00:08]} Rb1+ {[%emt 0:00:15]} 37. Rd1 {[%emt 0:01:41]} Rb2 {[%emt 0:
00:00]} 38. Bb5 {[%emt 0:00:33]} Ra2 {[%emt 0:04:09]} 39. Kg2 {[%emt 0:01:29]}
Kf6 {[%emt 0:00:27]} 40. Rc1 {[%emt 0:00:42]} d5 {[%emt 0:00:31]} 41. Rd1 {
[%emt 0:30:39]} e6 {[%emt 0:34:32]} 42. Rc1 {[%emt 0:00:29]} Nf3 {[%emt 0:00:
00]} 43. Be8 {[%emt 0:00:00]} Nd2 {[%emt 0:00:00]} 44. Rd1 {[%emt 0:00:00]} Nc4
{[%emt 0:00:00]} 45. Kg1 {[%emt 0:00:00]} Nd6 {[%emt 0:00:00]} 46. Bd7 {
[%emt 0:00:00]} Ne4 {[%emt 0:00:00]} 47. Rf1 {[%emt 0:00:00]} e5 {[%emt 0:00:
00]} 48. Bc6 {[%emt 0:01:59]} d4 {[%emt 0:00:00]} 49. exd4 {[%emt 0:01:19]}
exd4 {[%emt 0:00:00]} 50. Rd1 {[%emt 0:00:42]} Ke5 {[%emt 0:00:00]} 51. Be8 {
[%emt 0:00:32]} Nxf2 {[%emt 0:00:00]} 52. Re1+ {[%emt 0:00:30]} Kf6 {[%emt 0:
00:00]} 53. Rb1 {[%emt 0:00:12]} d3 {[%emt 0:00:00]} 54. Rb6+ {[%emt 0:00:48]}
Ke7 {[%emt 0:00:00]} 55. Bb5 {[%emt 0:00:09]} Nh3+ {[%emt 0:00:00]} 56. Kf1 {
[%emt 0:00:20]} Ra1+ {[%emt 0:00:00]} 57. Kg2 {[%emt 0:00:07]} d2 {[%emt 0:00:
00]} 58. Rb7+ {[%emt 0:00:46]} Kf6 {[%emt 0:00:00]} 59. Be2 {[%emt 0:01:04]}
Re1 {[%emt 0:00:00]} 60. Rb6+ {[%emt 0:00:28]} Kg7 {[%emt 0:00:00]} 0-1

[Event "44th Chess Olympiad Open 2022"]
[Site "Chennai"]
[Date "2022.08.02"]
[Round "5.53"]
[White "Giron Chavez David Emanuel"]
[Black "Chimthere, Alfred Charles"]
[Result "1-0"]
[WhiteElo "2115"]
[BlackElo "2035"]
[Annotator "NA RC"]
[PlyCount "135"]
[EventDate "2022.??.??"]
[TimeControl "60"]

1. e4 {[%emt 0:00:21]} c6 {[%emt 0:00:10]} 2. d4 {[%emt 0:00:08]} d5 {[%emt 0:
00:00]} 3. e5 {[%emt 0:00:11]} Bf5 {[%emt 0:00:36]} 4. Nf3 {[%emt 0:00:13]} e6
{[%emt 0:00:26]} 5. Be2 {[%emt 0:00:27]} c5 {[%emt 0:00:52]} 6. O-O {[%emt 0:
00:00]} cxd4 {[%emt 0:02:19]} 7. Nxd4 {[%emt 0:00:53]} Ne7 {[%emt 0:01:13]} 8.
c4 {[%emt 0:09:20]} Nbc6 {[%emt 0:08:04]} 9. Qa4 {[%emt 0:15:59]} dxc4 {
[%emt 0:13:05]} 10. Rd1 {[%emt 0:09:53]} Qa5 {[%emt 0:04:17]} 11. Nb5 {[%emt 0:
00:00]} Nd5 {[%emt 0:00:32]} 12. Qxa5 {[%emt 0:03:53]} Nxa5 {[%emt 0:00:28]}
13. N1c3 {[%emt 0:00:35]} O-O-O {[%emt 0:06:37]} 14. Nxa7+ {[%emt 0:05:00]} Kb8
{[%emt 0:00:09]} 15. Be3 {[%emt 0:02:45]} Bd3 {[%emt 0:08:07]} 16. Bd4 {
[%emt 0:16:14]} Nxc3 {[%emt 0:03:12]} 17. Bxc3 {[%emt 0:00:05]} Kxa7 {[%emt 0:
00:00]} 18. Bxa5 {[%emt 0:00:09]} b6 {[%emt 0:00:22]} 19. Bc3 {[%emt 0:00:03]}
Bc5 {[%emt 0:00:59]} 20. Bxd3 {[%emt 0:08:25]} cxd3 {[%emt 0:02:39]} 21. Rd2 {
[%emt 0:04:22]} Rd5 {[%emt 0:01:51]} 22. Rad1 {[%emt 0:01:26]} Rhd8 {[%emt 0:
00:00]} 23. g3 {[%emt 0:01:17]} Be7 {[%emt 0:03:23]} 24. Kg2 {[%emt 0:00:56]}
f5 {[%emt 0:03:43]} 25. exf6 {[%emt 0:02:05]} gxf6 {[%emt 0:01:21]} 26. f4 {
[%emt 0:00:07]} e5 {[%emt 0:26:04]} 27. fxe5 {[%emt 0:00:02]} fxe5 {[%emt 0:00:
00]} 28. Re1 {[%emt 0:00:35]} Bg5 {[%emt 0:00:54]} 29. Rdd1 {[%emt 0:00:07]}
Re8 {[%emt 0:03:36]} 30. Kf3 {[%emt 0:04:16]} h5 {[%emt 0:02:20]} 31. Ke4 {
[%emt 0:00:14]} Red8 {[%emt 0:00:24]} 32. Rf1 {[%emt 0:01:52]} Rc5 {[%emt 0:00:
00]} 33. Kf5 {[%emt 0:03:17]} Bh6 {[%emt 0:01:11]} 34. Rfe1 {[%emt 0:01:12]}
Bg7 {[%emt 0:00:52]} 35. Kg6 {[%emt 0:03:44]} Rd6+ {[%emt 0:01:23]} 36. Kf5 {
[%emt 0:00:59]} Rd8 {[%emt 0:00:28]} 37. Re4 {[%emt 0:00:18]} Ka6 {[%emt 0:00:
00]} 38. Ra4+ {[%emt 0:00:37]} Kb7 {[%emt 0:00:48]} 39. Re4 {[%emt 0:00:34]}
Ka6 {[%emt 0:00:12]} 40. Kg6 {[%emt 0:00:22]} Rd6+ {[%emt 0:01:55]} 41. Kxh5 {
[%emt 0:03:40]} b5 {[%emt 0:02:15]} 42. Kg4 {[%emt 0:05:51]} Rc4 {[%emt 0:00:
00]} 43. Rxc4 {[%emt 0:00:24]} bxc4 {[%emt 0:00:02]} 44. Kf3 {[%emt 0:00:34]}
e4+ {[%emt 0:07:17]} 45. Kxe4 {[%emt 0:00:42]} Bxc3 {[%emt 0:00:05]} 46. bxc3 {
[%emt 0:00:06]} Kb5 {[%emt 0:00:18]} 47. h4 {[%emt 0:06:16]} Kc5 {[%emt 0:00:
00]} 48. Kf5 {[%emt 0:04:42]} Ra6 {[%emt 0:00:29]} 49. h5 {[%emt 0:03:13]} Rxa2
{[%emt 0:00:39]} 50. g4 {[%emt 0:00:24]} Rh2 {[%emt 0:03:58]} 51. Kg6 {[%emt 0:
00:00]} Kd5 {[%emt 0:01:45]} 52. h6 {[%emt 0:00:32]} Ke4 {[%emt 0:01:13]} 53.
h7 {[%emt 0:05:25]} Ke3 {[%emt 0:00:23]} 54. Kg7 {[%emt 0:00:53]} Ke2 {[%emt 0:
00:00]} 55. Ra1 {[%emt 0:01:29]} d2 {[%emt 0:00:14]} 56. h8=Q {[%emt 0:00:27]}
Rxh8 {[%emt 0:00:20]} 57. Kxh8 {[%emt 0:00:03]} d1=Q {[%emt 0:00:19]} 58. Rxd1
{[%emt 0:00:03]} Kxd1 {[%emt 0:00:07]} 59. g5 {[%emt 0:00:02]} Kc2 {[%emt 0:00:
00]} 60. g6 {[%emt 0:00:06]} Kxc3 {[%emt 0:00:02]} 61. g7 {[%emt 0:00:13]} Kb2
{[%emt 0:00:02]} 62. g8=Q {[%emt 0:00:12]} c3 {[%emt 0:00:01]} 63. Qb8+ {
[%emt 0:00:26]} Kc1 {[%emt 0:00:45]} 64. Qf4+ {[%emt 0:00:19]} Kb2 {[%emt 0:00:
00]} 65. Qb4+ {[%emt 0:00:08]} Kc2 {[%emt 0:00:12]} 66. Kg7 {[%emt 0:01:02]}
Kd3 {[%emt 0:00:04]} 67. Kf6 {[%emt 0:00:45]} c2 {[%emt 0:00:03]} 68. Qe1 {
[%emt 0:00:04]} 1-0

[Event "44th Chess Olympiad Open 2022"]
[Site "Chennai"]
[Date "2022.08.02"]
[Round "5.53"]
[White "Matola Ernest"]
[Black "Galvez Dastin, Eduardo"]
[Result "1/2-1/2"]
[WhiteElo "1964"]
[BlackElo "2152"]
[Annotator "NA RC"]
[PlyCount "70"]
[EventDate "2022.??.??"]
[TimeControl "60"]

1. Nf3 {[%emt 0:00:22]} d5 {[%emt 0:00:06]} 2. g3 {[%emt 0:00:13]} c5 {[%emt 0:
00:00]} 3. Bg2 {[%emt 0:00:16]} Nc6 {[%emt 0:00:09]} 4. O-O {[%emt 0:00:22]} e5
{[%emt 0:00:21]} 5. d3 {[%emt 0:00:17]} Nf6 {[%emt 0:00:16]} 6. Nbd2 {[%emt 0:
00:00]} Be7 {[%emt 0:01:10]} 7. e4 {[%emt 0:00:11]} dxe4 {[%emt 0:01:49]} 8.
dxe4 {[%emt 0:00:12]} O-O {[%emt 0:00:46]} 9. Re1 {[%emt 0:00:35]} Qc7 {
[%emt 0:04:50]} 10. c3 {[%emt 0:01:30]} Be6 {[%emt 0:00:37]} 11. Ng5 {[%emt 0:
00:00]} Bg4 {[%emt 0:00:34]} 12. Qc2 {[%emt 0:00:17]} Rad8 {[%emt 0:08:56]} 13.
Nc4 {[%emt 0:03:19]} h6 {[%emt 0:00:35]} 14. Nf3 {[%emt 0:00:24]} Rfe8 {
[%emt 0:00:22]} 15. Ne3 {[%emt 0:00:25]} Be6 {[%emt 0:00:29]} 16. Nh4 {[%emt 0:
00:00]} Bf8 {[%emt 0:00:21]} 17. h3 {[%emt 0:03:59]} g6 {[%emt 0:04:40]} 18.
Nd5 {[%emt 0:07:59]} Nxd5 {[%emt 0:02:08]} 19. exd5 {[%emt 0:00:16]} Bxd5 {
[%emt 0:01:00]} 20. Bxd5 {[%emt 0:00:17]} Rxd5 {[%emt 0:00:34]} 21. Nxg6 {
[%emt 0:00:22]} Bg7 {[%emt 0:01:39]} 22. Nh4 {[%emt 0:00:48]} Ne7 {[%emt 0:00:
00]} 23. Qe4 {[%emt 0:06:06]} Qd7 {[%emt 0:01:51]} 24. g4 {[%emt 0:04:30]} Rf8
{[%emt 0:14:42]} 25. Be3 {[%emt 0:00:58]} b6 {[%emt 0:00:52]} 26. Kh2 {[%emt 0:
00:00]} Qe6 {[%emt 0:08:14]} 27. Rg1 {[%emt 0:06:19]} Rfd8 {[%emt 0:00:56]} 28.
Nf5 {[%emt 0:02:46]} R5d7 {[%emt 0:10:07]} 29. Nxe7+ {[%emt 0:02:51]} Rxe7 {
[%emt 0:00:14]} 30. g5 {[%emt 0:00:47]} hxg5 {[%emt 0:04:02]} 31. Bxg5 {
[%emt 0:01:55]} f6 {[%emt 0:00:15]} 32. Bh4 {[%emt 0:01:26]} Rf7 {[%emt 0:00:
00]} 33. Rg6 {[%emt 0:01:18]} Qd5 {[%emt 0:01:31]} 34. Qg4 {[%emt 0:04:39]} f5
{[%emt 0:04:32]} 35. Qg5 {[%emt 0:00:49]} Rd6 {[%emt 0:00:37]} 1/2-1/2

[Event "44th Chess Olympiad Open 2022"]
[Site "Chennai"]
[Date "2022.08.02"]
[Round "5.54"]
[White "Tapia Ostolaza, Alexei"]
[Black "Etienne, Angelo"]
[Result "1/2-1/2"]
[WhiteElo "2201"]
[BlackElo "2036"]
[Annotator "RC"]
[PlyCount "174"]
[EventDate "2022.??.??"]
[TimeControl "60"]

1. Nf3 {[%emt 0:00:06]} Nf6 {[%emt 0:00:11]} 2. g3 {[%emt 0:00:08]} g6 {
[%emt 0:01:44]} 3. b3 {[%emt 0:00:19]} Bg7 {[%emt 0:00:24]} 4. Bb2 {[%emt 0:00:
00]} O-O {[%emt 0:01:35]} 5. Bg2 {[%emt 0:00:09]} c6 {[%emt 0:00:03]} 6. O-O {
[%emt 0:01:31]} d5 {[%emt 0:01:39]} 7. c4 {[%emt 0:00:47]} a5 {[%emt 0:03:06]}
8. d3 {[%emt 0:13:08]} Re8 {[%emt 0:06:21]} 9. Qc2 {[%emt 0:01:43]} Na6 {
[%emt 0:03:23]} 10. Rd1 {[%emt 0:06:05]} Bg4 {[%emt 0:12:35]} 11. Ne5 {[%emt 0:
00:00]} Nb4 {[%emt 0:00:59]} 12. Qd2 {[%emt 0:01:04]} Be6 {[%emt 0:01:12]} 13.
a3 {[%emt 0:04:12]} Na6 {[%emt 0:01:02]} 14. Nf3 {[%emt 0:17:03]} Bg4 {[%emt 0:
00:00]} 15. Qc2 {[%emt 0:07:25]} Bxf3 {[%emt 0:03:51]} 16. exf3 {[%emt 0:01:30]
} Qb6 {[%emt 0:01:04]} 17. f4 {[%emt 0:04:16]} Rad8 {[%emt 0:06:06]} 18. Nd2 {
[%emt 0:04:13]} Ng4 {[%emt 0:06:30]} 19. Rf1 {[%emt 0:03:57]} Bxb2 {[%emt 0:00:
00]} 20. Qxb2 {[%emt 0:00:03]} Nh6 {[%emt 0:13:34]} 21. Rad1 {[%emt 0:07:48]}
Nf5 {[%emt 0:00:35]} 22. Nf3 {[%emt 0:04:22]} Nc5 {[%emt 0:01:40]} 23. cxd5 {
[%emt 0:03:00]} Rxd5 {[%emt 0:01:40]} 24. Ne5 {[%emt 0:00:42]} Rdd8 {[%emt 0:
00:00]} 25. b4 {[%emt 0:01:21]} axb4 {[%emt 0:00:38]} 26. Qxb4 {[%emt 0:00:33]}
Qa7 {[%emt 0:00:38]} 27. Qc4 {[%emt 0:02:21]} Nd6 {[%emt 0:04:11]} 28. Qa2 {
[%emt 0:00:34]} Ne6 {[%emt 0:00:17]} 29. Nxf7 {[%emt 0:00:37]} Nxf7 {[%emt 0:
00:00]} 30. Qxe6 {[%emt 0:00:27]} Qxa3 {[%emt 0:00:13]} 31. Rb1 {[%emt 0:00:54]
} Qd6 {[%emt 0:01:06]} 32. Qc4 {[%emt 0:01:10]} Qxd3 {[%emt 0:03:02]} 33. Qxd3
{[%emt 0:00:29]} Rxd3 {[%emt 0:00:02]} 34. Rxb7 {[%emt 0:00:03]} Rc3 {[%emt 0:
00:00]} 35. Rc7 {[%emt 0:01:17]} e5 {[%emt 0:01:45]} 36. Re1 {[%emt 0:00:17]}
Kf8 {[%emt 0:02:03]} 37. Bxc6 {[%emt 0:04:59]} Re7 {[%emt 0:00:01]} 38. Rxe7 {
[%emt 0:00:12]} Kxe7 {[%emt 0:00:02]} 39. Bd5 {[%emt 0:00:13]} Nh6 {[%emt 0:00:
00]} 40. fxe5 {[%emt 0:00:59]} Rc5 {[%emt 0:01:04]} 41. Bg2 {[%emt 0:31:08]}
Nf7 {[%emt 0:31:22]} 42. f4 {[%emt 0:00:22]} g5 {[%emt 0:01:20]} 43. e6 {
[%emt 0:03:34]} Nd8 {[%emt 0:00:13]} 44. Bh3 {[%emt 0:00:12]} h5 {[%emt 0:00:
00]} 45. f5 {[%emt 0:00:25]} Nc6 {[%emt 0:00:46]} 46. Bg2 {[%emt 0:01:51]} Ne5
{[%emt 0:02:02]} 47. h3 {[%emt 0:01:27]} g4 {[%emt 0:00:15]} 48. hxg4 {[%emt 0:
00:00]} Nxg4 {[%emt 0:00:00]} 49. Be4 {[%emt 0:00:00]} Re5 {[%emt 0:00:00]} 50.
Kg2 {[%emt 0:00:00]} Nh6 {[%emt 0:00:00]} 51. Rh1 {[%emt 0:00:00]} Nxf5 {
[%emt 0:00:00]} 52. Bxf5 {[%emt 0:00:00]} Rxf5 {[%emt 0:00:00]} 53. Re1 {
[%emt 0:00:00]} Ra5 {[%emt 0:00:00]} 54. Kh3 {[%emt 0:00:00]} Rb5 {[%emt 0:00:
00]} 55. Kh4 {[%emt 0:00:00]} Ra5 {[%emt 0:00:00]} 56. Re4 {[%emt 0:00:00]} Rb5
{[%emt 0:00:00]} 57. Rf4 {[%emt 0:00:00]} Kxe6 {[%emt 0:00:00]} 58. Rf8 {
[%emt 0:00:00]} Ra5 {[%emt 0:00:00]} 59. Rh8 {[%emt 0:00:00]} Kf6 {[%emt 0:00:
00]} 60. Rxh5 {[%emt 0:00:00]} Ra4+ {[%emt 0:00:00]} 61. Kh3 {[%emt 0:00:00]}
Rb4 {[%emt 0:00:00]} 62. Rh4 {[%emt 0:00:00]} Rb5 {[%emt 0:00:00]} 63. Rc4 {
[%emt 0:00:00]} Rh5+ {[%emt 0:00:00]} 64. Kg4 {[%emt 0:00:00]} Rg5+ {[%emt 0:
00:00]} 65. Kh4 {[%emt 0:00:00]} Ra5 {[%emt 0:00:00]} 66. Rc6+ {[%emt 0:00:00]}
Kg7 {[%emt 0:00:00]} 67. g4 {[%emt 0:00:00]} Rd5 {[%emt 0:00:00]} 68. Re6 {
[%emt 0:00:00]} Rb5 {[%emt 0:00:00]} 69. Kg3 {[%emt 0:00:00]} Rb3+ {[%emt 0:00:
00]} 70. Kf4 {[%emt 0:00:00]} Rb4+ {[%emt 0:00:00]} 71. Kg5 {[%emt 0:00:00]}
Rb5+ {[%emt 0:00:00]} 72. Kh4 {[%emt 0:00:00]} Ra5 {[%emt 0:00:00]} 73. Re7+ {
[%emt 0:00:00]} Kg6 {[%emt 0:00:00]} 74. Re8 {[%emt 0:00:00]} Rb5 {[%emt 0:00:
00]} 75. Rg8+ {[%emt 0:00:00]} Kh6 {[%emt 0:00:00]} 76. g5+ {[%emt 0:00:00]}
Kh7 {[%emt 0:00:00]} 77. Rc8 {[%emt 0:00:00]} Kg7 {[%emt 0:00:00]} 78. Kh5 {
[%emt 0:00:00]} Rb7 {[%emt 0:00:00]} 79. Rc6 {[%emt 0:00:36]} Ra7 {[%emt 0:00:
00]} 80. Rg6+ {[%emt 0:00:15]} Kh7 {[%emt 0:00:00]} 81. Re6 {[%emt 0:00:16]}
Kg7 {[%emt 0:00:00]} 82. Kg4 {[%emt 0:00:35]} Ra4+ {[%emt 0:00:00]} 83. Kf5 {
[%emt 0:00:38]} Ra5+ {[%emt 0:00:00]} 84. Re5 {[%emt 0:00:27]} Ra7 {[%emt 0:00:
00]} 85. Re6 {[%emt 0:01:29]} Ra5+ {[%emt 0:00:00]} 86. Re5 {[%emt 0:00:06]}
Ra7 {[%emt 0:00:00]} 87. Re6 {[%emt 0:01:03]} Ra5+ {[%emt 0:00:00]} 1/2-1/2